Cogmind - Beta 11.1 @@@ ROGUE MODE // 2022.08.19 @ 22:14:20 Player: Smie Result: Destroyed by D-53 Grenadier with Mini Grenade Launcher Performance ------------- Evolutions (1) 500 Regions Visited (4) 800 Robots Destroyed (14) 70 Value Destroyed (128) 128 Prototype IDs (0) 0 Alien Tech Used (0) 0 Bonus (228) 228 TOTAL SCORE: 1726 Bonus ------- Follower Combat Kills 228 Cogmind --------- Core Integrity 0/400 Matter 300/300 Energy 100/100 System Corruption 0% Temperature Cool (0) Movement Core (50) Location -9/Mines Parts ------- > --- POWER (1) -------- (None) > --- PROPULSION (3) --- (None) > --- UTILITY (3) ------ Signal Interpreter > --- WEAPON (2) ------- (None) > --- INVENTORY (5) ---- Light Ion Engine Structural Scanner Visual Processing Unit Sensor Array Heavy Mace Peak State ------------ > --- POWER ------------ Light Ion Engine > --- PROPULSION ------- Flight Unit Flight Unit VTOL Module > --- UTILITY ---------- Small Storage Unit Structural Scanner Signal Interpreter > --- WEAPON ----------- Flail Heavy Mace > --- INVENTORY -------- Light Ion Engine Compact Wheel Flight Unit Flight Unit Visual Processing Unit Sensor Array Propulsion Shielding Mini Grenade Launcher [Rating: 14] Favorites ----------- Power Light Ion Engine Engine Light Ion Engine Propulsion Compact Wheel Wheel Compact Wheel Flight Unit Flight Unit Utility Small Storage Unit Device Structural Scanner Storage Small Storage Unit Processor Signal Interpreter Protection Propulsion Shielding Weapon Light Assault Rifle Energy Gun Small Laser Ballistic Gun Light Assault Rifle Launcher Mini Grenade Launcher Impact Weapon Flail Build | -11 -10 -10 -9 -9 ------- Run | Scr Mat Min Mat Min Slots Evolved 2 | . . . 2 . Power . | . . . . . Propulsion 1 | . . . 1 . Utility 1 | . . . 1 . Weapon . | . . . . . Parts Attached 29 | 7 6 . 11 5 Power 4 | 1 1 . 2 . Engine 4 | 1 1 . 2 . Core . | . . . . . Reactor . | . . . . . Propulsion 10 | 2 1 . 4 3 Treads . | . . . . . Leg . | . . . . . Wheel 4 | 2 1 . . 1 Hover . | . . . . . Flight 6 | . . . 4 2 Utility 6 | 2 2 . 1 1 Device 3 | 1 1 . 1 . Storage 1 | 1 . . . . Processor 1 | . 1 . . . Hackware . | . . . . . Protection 1 | . . . . 1 Artifact . | . . . . . Weapon 9 | 2 2 . 4 1 Energy Gun 1 | 1 . . . . Energy Cannon . | . . . . . Ballistic Gun 4 | 1 2 . 1 . Ballistic Cannon . | . . . . . Launcher 2 | . . . 1 1 Special Weapon . | . . . . . Impact Weapon 2 | . . . 2 . Slashing Weapon . | . . . . . Piercing Weapon . | . . . . . Special Melee Weapon . | . . . . . Unidentified Prototypes . | . . . . . Parts Lost 11 | . . . 1 10 Power 1 | . . . . 1 Propulsion 7 | . . . 1 6 Utility 2 | . . . . 2 Weapon 1 | . . . . 1 Highest Loss Streak 10 | . . . 1 10 To Critical Strikes . | . . . . . Average Slot Usage (%) 95 | . 99 100 97 57 Engine 12 | . 14 14 11 4 Wheel 19 | . 28 28 . 1 Flight 9 | . . . 32 17 Device 6 | . 8 . 10 6 Storage 13 | . 14 14 11 11 Processor 9 | . 5 14 11 11 Energy Gun 2 | . 7 . . . Ballistic Gun 19 | . 20 28 14 . Impact Weapon 1 | . . . 5 2 Naked Turns . | . . . . . Heaviest Build 13 | 13 13 10 12 12 Greatest Support 32 | 26 32 32 12 16 Greatest Overweight (x) 1 | 1 . . . 1 Average Overweight (x) . | . . . . . Largest Inventory Capacity 8 | 8 8 8 8 8 Average Capacity 7 | 7 8 8 8 7 Most Carried 8 | 8 8 8 8 8 Average Carried 7 | 5 7 8 7 6 Final Capacity 8 | 8 8 8 8 5 Final Carried 8 | 8 8 8 8 5 Class Distribution -------------------- 43% | Scavenger-Mutant 36% | Mutant 19% | Scavenger-Sprinter Dominant Class ---------------- Mutant | -10/Materials Scavenger-Mutant | -10/Mines Scavenger-Sprinter | -9/Materials Mutant | -9/Mines Resources | -11 -10 -10 -9 -9 ----------- Run | Scr Mat Min Mat Min Matter Collected 734 | 270 259 23 131 51 Remotely . | . . . . . Salvage Created 401 | 115 77 . 207 2 Parts 29 | 3 15 . 11 . Haulers Intercepted 1 | . . . 1 . Recyclers Shooed . | . . . . . Parts Field Recycled . | . . . . . Retrieved Matter . | . . . . . Parts Self-Destructed . | . . . . . Prevented . | . . . . . Kills | -11 -10 -10 -9 -9 ------- Run | Scr Mat Min Mat Min Combat Hostiles Destroyed 8 | . 3 . 4 1 Guns 3 | . 3 . . . AOE 5 | . . . 4 1 Classes Destroyed 7 | 2 3 . 1 1 Builder 1 | . 1 . . . Tunneler 1 | 1 . . . . Hauler 1 | . . . 1 . Recycler 3 | 1 . . 2 . Watcher 1 | . 1 . . . Swarmer 7 | . 3 . 4 . Assembled 1 | . . . . 1 Best Kill Streak 5 | 1 2 . 5 1 Combat Bots Only 4 | . 2 . 4 1 Max Kills in Single Turn 5 | 1 1 . 5 1 Gunslinging . | . . . . . Exploded 4 | . . . 4 1 Melee . | . . . . . Uniques/NPCs Destroyed . | . . . . . Combat | -11 -10 -10 -9 -9 -------- Run | Scr Mat Min Mat Min Damage Taken 979 | . 83 . 91 805 Core 412 | . 7 . . 405 Absorbed by Shields . | . . . . . Redirected to Shielding 62 | . . . . 62 Regen/Repaired (Parts) 19 | . 14 . 5 . Core Remaining (%) 98 | 100 . 97 . . Volleys Fired 49 | 12 14 . 22 1 Largest 2 | 1 2 . 2 1 Hottest 60 | 40 60 . 50 30 Shots Fired 78 | 12 27 1 37 1 Gun 76 | 12 27 1 36 . Cannon . | . . . . . Launcher 2 | . . . 1 1 Special . | . . . . . Kinetic 51 | . 14 1 36 . Thermal 25 | 12 13 . . . Explosive 2 | . . . 1 1 Electromagnetic . | . . . . . Robot Hit Streak 12 | 2 5 5 12 . Robot Miss Streak 4 | 4 2 . 2 . Penetration Max . | . . . . . Secondary Targets . | . . . . . Shots Hit Robots 49 | 6 16 1 26 . Core Hits 21 | 3 7 . 9 2 Critical Kills . | . . . . . Critical Parts Destroyed . | . . . . . Critical Strikes . | . . . . . Melee Attacks 4 | . . . 3 1 Impact 4 | . . . 3 1 Slashing . | . . . . . Piercing . | . . . . . Sneak Attacks . | . . . . . Combat Hostiles . | . . . . . Follow-up Attacks . | . . . . . Damage Inflicted 763 | 88 156 . 408 111 Guns 459 | 88 156 . 215 . Cannons . | . . . . . Explosions 304 | . . . 193 111 Melee . | . . . . . Ramming . | . . . . . Kinetic 283 | . 68 . 215 . Thermal 176 | 88 88 . . . Explosive 304 | . . . 193 111 Electromagnetic . | . . . . . Impact . | . . . . . Slashing . | . . . . . Piercing . | . . . . . Highest Corruption 1 | . 1 1 . . Average Corruption 1 | . 1 1 . . Corruption Purged . | . . . . . Corruption Blocked . | . . . . . Effects 9 | . 5 4 . . Message Errors 1 | . 1 . . . Matter Fused 1 | . 1 . . . Heat Flow Errors 2 | . 2 . . . Energy Discharges 2 | . . 2 . . Data Loss (major) 1 | . . 1 . . Misfires 1 | . . 1 . . Weapon Failures 1 | . 1 . . . Overload Shots . | . . . . . Overflow Damage 13 | . . . 13 . Projectiles . | . . . . . Explosions 13 | . . . 13 . Melee . | . . . . . Knockbacks . | . . . . . Impact . | . . . . . Kinetic . | . . . . . Secondary . | . . . . . Self-Inflicted Damage 86 | . . . 48 38 Shots 2 | . . . 1 1 Rammed . | . . . . . Targets Rammed . | . . . . . Kicked . | . . . . . Crushed . | . . . . . Highest Temperature 174 | . 174 . 9 . Average Temperature 33 | . 39 . 5 . Received Heat Transfer 9 | . . . 9 . Siege Activations . | . . . . . Robots Corrupted . | . . . . . Combat Hostiles . | . . . . . Parts Fried . | . . . . . Impact Corruptions . | . . . . . Robots Melted . | . . . . . Combat Hostiles . | . . . . . Parts Melted . | . . . . . Heat Transferred 400 | 200 200 . . . Parts Sabotaged . | . . . . . Parts Stolen . | . . . . . Parts Stripped . | . . . . . Power Chain Reactions . | . . . . . Missiles Intercepted . | . . . . . Alert | -11 -10 -10 -9 -9 ------- Run | Scr Mat Min Mat Min Peak Influence 443 | 10 176 127 443 259 Initial 172 | . 6 . 41 172 Average 113 | 2 82 39 277 180 Maximum Alert Level 2 | . . . 2 1 Low Security (%) 84 | 100 100 100 32 85 Level 1 11 | . . . 48 14 Level 2 4 | . . . 19 . Level 3 . | . . . . . Level 4 . | . . . . . Level 5 . | . . . . . High Security . | . . . . . Max Security . | . . . . . Squads Dispatched 3 | . 1 . 2 . Investigation 1 | . . . 1 . Extermination . | . . . . . Reinforcement 2 | . 1 . 1 . Assault . | . . . . . Garrison . | . . . . . Intercept . | . . . . . Searches Triggered . | . . . . . Construction Impeded . | . . . . . Haulers Reinforced . | . . . . . Active Scanning Responses . | . . . . . Cargo Convoy Interrupts . | . . . . . Stealth | -11 -10 -10 -9 -9 --------- Run | Scr Mat Min Mat Min Distress Signals 3 | . . . 3 . Communications Jammed . | . . . . . Distress Signals . | . . . . . Times Spotted 39 | . 10 3 17 9 Peak Tracking Total 17 | . 3 2 8 17 Tactical Retreats 3 | . 1 2 . . Traps | -11 -10 -10 -9 -9 ------- Run | Scr Mat Min Mat Min Traps Triggered . | . . . . . Indirectly . | . . . . . Trap Hack Attempts . | . . . . . Triggered . | . . . . . Disarmed . | . . . . . Reprogrammed . | . . . . . Reused . | . . . . . Traps Extracted . | . . . . . Installed . | . . . . . Triggered . | . . . . . Machines | -11 -10 -10 -9 -9 ---------- Run | Scr Mat Min Mat Min Machines Disabled 1 | . . 1 . . Max in Single Turn . | . . . . . Machines Sabotaged . | . . . . . Garrisons Compromised . | . . . . . Overloaded Fab Kills . | . . . . . Hacking | -11 -10 -10 -9 -9 --------- Run | Scr Mat Min Mat Min Machines Accessed 8 | . 4 . 4 . Terminals 6 | . 3 . 3 . Fabricators . | . . . . . Repair Stations 2 | . 1 . 1 . Recycling Units . | . . . . . Scanalyzers . | . . . . . Garrison Access . | . . . . . Total Hacks 26 | . 16 . 10 . Successful 15 | . 6 . 9 . Failed 11 | . 10 . 1 . Catastrophic 2 | . 2 . . . Database Lockouts . | . . . . . Manual 12 | . 7 . 5 . Terminals 21 | . 13 . 8 . Fabricators . | . . . . . Repair Stations 5 | . 3 . 2 . Recycling Units . | . . . . . Scanalyzers . | . . . . . Garrison Access . | . . . . . Terminal Hacks 8 | . 3 . 5 . Branch Access Points 1 | . . . 1 . Locate Traps 1 | . . . 1 . Recall Investigation 1 | . 1 . . . Recall Reinforcements 1 | . 1 . . . Hauler Manifests 1 | . . . 1 . Zone Layout 3 | . 1 . 2 . Fabricator Hacks . | . . . . . Repair Station Hacks 4 | . 2 . 2 . Scan Component 2 | . 1 . 1 . Repair 2 | . 1 . 1 . Recycling Unit Hacks . | . . . . . Scanalyzer . | . . . . . Garrison Access Hacks . | . . . . . Unauthorized Hacks 3 | . 1 . 2 . Terminals 3 | . 1 . 2 . Botnet 3 | . 1 . 2 . Fabricators . | . . . . . Repair Stations . | . . . . . Recycling Units . | . . . . . Scanalyzers . | . . . . . Garrison Access . | . . . . . Data Cores Recovered . | . . . . . Used . | . . . . . Hacking Detections 5 | . 2 . 3 . Full Trace Events 1 | . 1 . . . Feedback Events 1 | . 1 . . . Corruption 1 | . 1 . . . Feedback Blocked . | . . . . . Robot Schematics Acquired . | . . . . . Robots Built . | . . . . . Authchips . | . . . . . Time . | . . . . . Total Robot Build Rating . | . . . . . Part Schematics Acquired . | . . . . . Parts Built . | . . . . . Authchips . | . . . . . Time . | . . . . . Total Part Build Rating . | . . . . . Parts Repaired 2 | . 1 . 1 . Time 52 | . 26 . 26 . Parts Recycled . | . . . . . Recycled Matter . | . . . . . Retrieved Matter . | . . . . . Retrieved Components . | . . . . . Parts Scanalyzed . | . . . . . Part Schematics Acquired . | . . . . . Parts Damaged . | . . . . . Bothacking | -11 -10 -10 -9 -9 ------------ Run | Scr Mat Min Mat Min Used RIF Installer . | . . . . . Robots Hacked . | . . . . . Non-combat . | . . . . . Combat . | . . . . . Robot Hacks Applied . | . . . . . Relay Couplers Released . | . . . . . Fabnet Peak Effective % . | . . . . . Robots Rewired . | . . . . . Allies Hacked . | . . . . . Hacks Repelled . | . . . . . Allies | -11 -10 -10 -9 -9 -------- Run | Scr Mat Min Mat Min Total Allies 5 | . . 5 . . Largest Group 5 | . . 5 4 . Highest-Rated Group 85 | . . 85 54 . Highest-Rated Ally 31 | . . 31 16 . Total Orders . | . . . . . Ally Attacks 65 | . . 29 36 . Total Damage 854 | . . 456 398 . Kills 9 | . . 3 6 . Allies Corrupted . | . . . . . Allies Melted . | . . . . . Intel | -11 -10 -10 -9 -9 ------- Run | Scr Mat Min Mat Min Robot Analysis Total . | . . . . . Derelict Logs Recovered 1 | . . 1 . . Drone Launches . | . . . . . Drone Recoveries . | . . . . . Exploration | -11 -10 -10 -9 -9 ------------- Run | Scr Mat Min Mat Min Turns Passed 1317 | 111 477 348 285 96 Spaces Moved 1432 | 74 400 331 444 183 Core 51 | 6 . . . 45 Treads . | . . . . . Legs . | . . . . . Wheels 803 | 68 400 331 . 4 Hover . | . . . . . Flight 578 | . . . 444 134 Fastest Speed 32 | 50 90 100 32 32 Average Speed 70 | 87 95 100 32 46 Slowest Speed 100 | 100 100 100 34 100 Overloaded Moves . | . . . . . Propulsion Burnouts . | . . . . . Robots Hopped 6 | . . . 4 2 Cave-ins Triggered . | . . . . . Exploration Rate (%) 46 | 4 59 64 51 52 Regions Visited 4 Branch Regions 2 Pre-discovered Areas . | . . . . . Known Exits Taken 3 | . 1 1 1 . Unknown Exits Taken 1 | 1 . . . . Scrap Searched 2 | . . 1 . 1 Spaces Dug 28 | . . . 11 17 Terrain Destroyed 28 | . . . 11 17 Melee 4 | . . . 3 1 Projectile . | . . . . . AOE 24 | . . . 8 16 Terrain Rammed . | . . . . . Walls Destroyed . | . . . . . Machines Disabled . | . . . . . Actions | -11 -10 -10 -9 -9 --------- Run | Scr Mat Min Mat Min Total 1658 | 104 472 348 546 188 Wait 108 | 4 34 18 52 . Move 1416 | 73 399 330 435 179 Hop 6 | . . . 4 2 Pick Up 25 | 8 8 . 9 . Fast Attach 14 | 7 4 . 3 . Attach 8 | . 2 . 3 3 Detach . | . . . . . Swap 7 | . . . 5 2 Drop 21 | . 11 . 10 . Fire 49 | 12 14 . 22 1 Melee 4 | . . . 3 1 Ram . | . . . . . Kick . | . . . . . Crush . | . . . . . Escape Stasis . | . . . . . Rewire . | . . . . . Trap . | . . . . . Miscellaneous . | . . . . . Route ------- -11/Scrapyard -10/Materials (discovered 4 exits: *Mat x3 / *Min) -10/Mines -9/Materials (discovered 2 exits: *Min x2) -9/Mines (discovered 2 exits: *Mat x2) History --------- Turn | Location | Event 27 | -11/Scrapyard | Discovered new exit (range 15) 112 | -11/Scrapyard | Entered Materials 116 | -10/Materials | Discovered new exit (range 17) 315 | -10/Materials | Discovered new exit (range 12) 329 | -10/Materials | Build established: Mutant 413 | -10/Materials | Repaired Structural Scanner 433 | -10/Materials | Discovered new exit (range 12) 490 | -10/Materials | Discovered new exit (range 16) 588 | -10/Materials | Identified exit to Mines 589 | -10/Materials | Entered Mines 715 | -10/Mines | Found a damaged Exp. Sensor Array with a note attached 721 | -10/Mines | Build established: Scavenger-Mutant 840 | -10/Mines | Discovered new exit (range 12) 850 | -10/Mines | Assisted by bots powering up and referring to "LRC-V3" 865 | -10/Mines | Identified exit to Materials 937 | -10/Mines | Entered Materials 937 | -9/Materials | Accompanied by 4 allies 937 | -9/Materials | Evolved 2 slots: Propulsion x1, Utility x1 965 | -9/Materials | Identified exit to Mines 1156 | -9/Materials | Repaired Flight Unit 1222 | -9/Materials | Entered Mines 1247 | -9/Mines | Assembled infested the area 1252 | -9/Mines | Discovered new exit (range 7) 1254 | -9/Mines | Identified exit to Materials 1257 | -9/Mines | Discovered exit to Materials (range 6) 1281 | -9/Mines | Core integrity fell below 50% 1311 | -9/Mines | Core integrity fell below 20% 1318 | -9/Mines | Destroyed by D-53 Grenadier with Mini Grenade Launcher Last Messages --------------- 01272_ Acquired 6 matter. 01272_ Mni. Grenade Launcher destroyed. 01272_ as-17535 destroyed. 01272_ as-86921 destroyed. 01273_ U-05 Engineer destroyed. 01274_ Flight Unit destroyed. 01274_ R-06 Scavenger destroyed. 01275_ The unstable cave ceiling collapses. 01275_ Acquired 10 matter. 01276_ Flight Unit destroyed. 01277_ The unstable cave ceiling collapses. 01278_ Propulsion Shielding destroyed. 01278_ Flight Unit destroyed. 01280_ The unstable cave ceiling collapses. 01280_ Com. Wheel destroyed. 01286_ The unstable cave ceiling collapses. 01290_ as-25909 destroyed. 01297_ The unstable cave ceiling collapses. 01310_ Sml. Storage Unit destroyed. 01317_ D-53 Grenadier destroyed. Map ----- +----------------------------------------------------+ | | | | | | | | | | | | | | | | | | | | | | | | | | | | | | | | | | | | | | | ????????????????????????????????????????????? | | ????????????????????????????????????????????? | | ?????????????????????#########??????????????? | | ?????????????????##### ##?????????????? | | ?????????????????# #?????????????? | | ???????????????### ##????????????? | | ??????????????## @ #????????????? | | ????????????### #????????????? | | ????????????# d # ##???????????? | | ????????????## ###### ##??????????? | | ???????????## #????# #??????????? | | ??????????## ##???## #??????????? | | ?????????## ##????# ##??????????? | | ????????## #????# ##??########## | | ???????## #????# #???########## | | ???????# #????## ##???## ## | | ??????## ##?????#####?##### """ ## | | ?###### ###????????????##### """ ## | | ## ## ##??????????????## """ ## | | # ## ###?????????????## ## ## | | ##### ###?????????????## ## ## | | ###### ##?????????????## #### ##### | | ##### ##?????????????## #### ##### | | ###### #??????????????## #### ##??? | | % ###### #??????????????## #### ##??? | | #### #?????????####### #### ##??? | | ## ##?#######?####### #### ##??? | | ##?########### #### ##??? | | ###### ##### ######### ##??? | | ## ##### #### ######### ##??? | | #### #### ### ######### ##??? | +----------------------------------------------------+ Best States ------------- Heat Dissipation 28 Energy Generation 10 Energy Capacity 250 Matter Stores 300 Matter Capacity 300 Sight Range 16 Terrain Scan Density 10 Evasion (%) 63 Item Schematics ----------------- None Robot Schematics ------------------ None Fabricated ------------ Nothing Alien Tech Used ----------------- None Achievements -------------- None Challenges ------------ None Game ------ Seed ComponentCoreNukerbomber Manual? 0 Play Time 00:35:31 Cumulative 128.5 hours Start 2022.08.19 @ 21:39:16 End 2022.08.19 @ 22:14:20 Sessions 1 Manual Loads 0 Difficulty Rogue Special Mode None Game No. 86 Rogue 67 Adventurer 16 Explorer 3 Win Type - Total 4 Types 4/0/0/0/0/0/0/0/0 Lore% 53 Gallery% 56 Achievement% 46 Wizard Run 0 Options --------- ASCII 1 Keyboard 1 Movement Numpad Keybinds 0 Fullscreen 0 Font 16/Terminus Map View 76x50 Tactical HUD 1 Map Filters NONE Filters NONE Steam X RUN: 07a67e41-4be0-4cf0-a700-dee1ad731f90